Workbook

Sheet Pressure System
B1: Virginia Livestock Watering Systems - Pressure System Worksheet (revised 01/2022)
B4: 1) Assistance Information | G4: Project Notes:
B5: Customer:
B6: County:
B7: Date:
B8: Assisted By:
B10: 2) Water Budget
B11: a) Total Daily Water Demand | G11: b) Daily Peak Water Demand | L11: c) Evaluate Source
B12: Type of livestock: | G12: Number of times herd drinks/day | K12: events | L12: Source flow rate: | P12: gpm
B13: Number of Animals: | G13: Time desired to water herd: | K13: minutes/event | L13: Source daily yield: | O13: =IF(O12="","",O12*60*24) ->  | P13: gpd
B14: Water demand/animal/day: | F14: gpd | G14: Average peak demand: | J14: =IF(J13="","",E15/J12/J13) ->  | K14: gpm | L14: If source flow rate is close to or less than Peak Demand, consider storage alternatives.
B15: Total Daily Demand: | E15: =IF(E14="","",E13*E14) ->  | F15: gpd | G15: Alternate peak demand: | K15: gpm | BD15: 1 | BE15: 2 | BF15: 3 | BG15: 4 | BH15: 5 | BI15: 6 | BV15: ASTM D2737: SDR 9 - Bue pipe
B16: See Design Note for watering recommendations for various types of livestock. | G16: See Design Note for considerations for estimating peak demand. | L16: If source daily yield is less than Total Daily Demand, consider an alternate or supplemental water source. | BA16: Choices for Nominal Diameter | BF16: Actual average inner dia.
AS17: Choices for Design Peak Flow | AW17: Choices for Pipe Material | AZ17: Hazen-Williams | BE17: PE | BF17: PVC | BG17: PE-SDR 9 | BH17: Copper | BI17: Steel
AR18: 1 | AZ18: C Value | BC18: Pipe dia. (in.) | BT18: Nominal | BU18: Outer | BV18: Min thickness | BW18: Tolerance | BX18: Avg. inner dia
B19: 3) Design Parameters | AR19: 2 | AS19: Avg. Peak Demand | AW19: 1 | BB19: 1
B20: a) Trough Information | G20: b) Pipe Information | L20: c) Vertical Pumping Distance | AR20: 3 | AS20: Alternate Peak Demand | AW20: 2 | AX20: Plastic: PE SIDR-PR | AZ20: 150 | BB20: 2 | BC20: 1" | BE20: 1.049 | BF20: 1.029 | BG20: 0.863 | BH20: 1.025 | BI20: 1.049 | BT20: 1" | BU20: 1.125 | BV20: 0.125 | BW20: 0.012 | BX20: =BU20-2*BV20-BW20 -> 0.863
B21: Trough type(s): | G21: Pipe material: | L21: High point to pump "to": | P21: (Text Description) | AR21: 4 | AS21: Source Flow Rate | AW21: 3 | AX21: Plastic: SCH 40 PVC | AZ21: 150 | BB21: 3 | BC21: 1 1/4" | BE21: 1.38 | BF21: 1.36 | BG21: 1.054 | BH21: 1.265 | BI21: 1.38 | BT21: 1 1/4" | BU21: 1.375 | BV21: 0.153 | BW21: 0.015 | BX21: =BU21-2*BV21-BW21 -> 1.054
B22: Design flow rate: | E22: =CHOOSE(AR23,"",J14,J15,O12) ->  | F22: gpm | G22: Pipe nominal diameter: | L22: Ground elev. of high point: | P22: feet | AW22: 4 | AX22: Plastic: PE SDR 9 | AZ22: 150 | BB22: 4 | BC22: 1 1/2" | BE22: 1.61 | BF22: 1.59 | BG22: 1.245 | BH22: 1.505 | BI22: 1.61 | BT22: 1 1/2" | BU22: 1.625 | BV22: 0.181 | BW22: 0.018 | BX22: 1.245
B23: Select flow rate to troughs as guided by Step 2 and Design Note. Typical design flow rates are: 8 gpm for frost-free troughs; 5 gpm for storage troughs. | G23: Pipe avg. inner diameter: | J23: =IF(BB25=1,"",INDEX(BD19:BI23,BB25,AW25)) ->  | K23: in. | AR23: 1 | AS23: = choice | AW23: 5 | AX23: Copper | AZ23: 130 | BB23: 5 | BC23: 2" | BE23: 2.067 | BF23: 2.047 | BG23: 1.629 | BH23: 1.985 | BI23: 2.067 | BT23: 2" | BU23: 2.125 | BV23: 0.236 | BW23: 0.024 | BX23: 1.629
G24: Pipe cross-sectional area: | J24: =IF(BB25=1,"",(J23/2)^2*PI()/144) ->  | K24: sq. ft. | L24: Low point to pump "from": | P24: (Text Description) | AW24: 6 | AX24: Steel | AZ24: 80
G25: Friction loss/100 ft | J25: =IF(OR(BB25= 1,E22=""),"",1043.8*POWER(E22/AZ25,1.85)/POWER(J23,4.87)) ->  | K25: ft./100 ft. | L25: Ground elev. of low point: | P25: feet | AW25: 1 | AX25: = choice | AZ25: =CHOOSE(AW25,"",150,150,150,130,80) ->  | BB25: 1 | BC25: = choice
B26: Maximum float valve pressure: | F26: psi | G26: Velocity check (<5 fps): | J26: =IF(BB25=1,"",IF(E22="","",E22*0.002228/J24)) ->  | K26: fps
B27: Typical values range from 50-140 psi. Check manufacturer's recommendations. | G27: If velocity is greater than 5 fps, consider a larger diameter pipe. | L27: Elevation difference: | O27: =IF(O25="","",O22-O25) ->  | P27: feet | AX27: C values from EFH-3, Fig 3-14 except
N28: OR | O28: =IF(O27="","",O27/2.31) ->  | P28: psi | AX28: for copper. Copper value from MWPS-1, 1987, p. 801.17.
G29: Pipe length to farthest watering point: | K29: feet
B30: Minimum float valve pressure: | F30: psi | G30: Add 10% for slope and fittings: | J30: =IF(J29="","",J29*1.1) ->  | K30: feet
B31: Varies depending on type of float. Use manufacturer's recommended minimum. Typical value is 10 psi. | G31: Total friction loss: | J31: =IF(J29="","",J25*J30/100) ->  | K31: ft. OR
G32: Total friction loss: | J32: =IF(J31="","",J31/2.31) ->  | K32: psi If friction loss is greater than 10 psi, consider using a larger diameter pipe.
G34: Pipe pressure rating: | K34: psi
G35: 72% of rating (See VA CPS 516): | J35: =IF(J34="","",0.72*J34) ->  | K35: psi Compare with result in Step 5b.
B38: 4) Pump and Pressure Tank Design
B39: a) Summary of energy requirements for the watering system: | I39: b) Pressure Switch Settings Based on System Load:
C40: Elevation head: | E40: =O28 ->  | F40: psi OR | G40: =IF(E40="","",E40*2.31) ->  | H40: feet | J40: Low pressure switch setting: | L40: =IF(E44="","",IF(E44<20,20,IF((FLOOR(E44,10)+4.999)<E44,CEILING(E44,10),FLOOR(E44,10)))) ->  | M40: psi (Minimum is 20 psi.)
C41: Friction loss: | E41: =J32 ->  | F41: psi OR | G41: =IF(E41="","",E41*2.31) ->  | H41: feet | J41: High pressure switch setting: | L41: =IF(L40="","",L40+20) ->  | M41: psi (Max. is usually 80 psi.)
C42: Minimum float valve pressure: | E42: =IF(E30="","",E30) ->  | F42: psi OR | G42: =IF(E42="","",E42*2.31) ->  | H42: feet | J42: If a high pressure switch setting of 80 psi or more is required, consider alternate design or high pressure-rated tank. Note: For VFD systems, Step 4b is not needed.
C43: Other: | F43: psi OR | G43: =IF(E43="","",E43*2.31) ->  | H43: feet
C44: TOTAL REQUIREMENTS: | E44: =IF(E40="","",SUM(E40:E43)) ->  | F44: psi OR | G44: =IF(E44="","",E44*2.31) ->  | H44: feet | J44: The pumping system should be designed based on the TOTAL REQUIREMENTS value computed in 4a.
B45: c) Dynamic Head added to pump by the watering system: | I45: d) Minimum Effective Drawdown for Pressure Tank: | N45: This is the minimum drawdown volume required to allow the pump to run for at least one minute before shutting off. A larger volume can be used.
B46: Dynamic head = higher switch setting of | E46: =L41 ->  | F46: psi x 2.31 = | G46: =IF(L41="","",L41*2.31) ->  | H46: feet | J46: Design pumping rate of | L46: =E22 ->  | M46: gpm x
B47: Total Dynamic Head will equal this number plus the 'Lift' Head required to get the water from the source up to the distribution system. The flow rate and the Total Dynamic Head will be used to size the pump for the project. | J47: Minimum pumping time of | L47: 1 | M47: minute =
J48: Minimum pressure tank volume of | L48: =IF(L46="","",L46*L47) ->  | M48: gallons
B51: 5) Static Pressure Checks | N51: Orange cell: pressure exceeds max float valve pressure; red cell: pipe pressure limit exceeded. Check troughs at higher elevations if pressure is excessive at lowest trough.
B52: a) Static pressure at pressure switch: | E52: Elevation of highest point: | H52: ft | I52: b) Check static pressure at lowest trough:
E53: Elevation of pressure switch: | H53: ft | J53: Elevation of pressure switch: | L53: =IF(G53="","",G53) ->  | M53: feet
B54: If static pressure on the switch exceeds low pressure switch setting (red cell), the pump will not turn back on after trough is initially filled and then emptied. | E54: Low pressure switch setting = | G54: =IF(G52="","",L40) ->  | H54: psi | J54: Elevation of lowest trough: | M54: feet
J55: Difference: | L55: =IF(L53="","",L53-L54) ->  | M55: feet OR | N55: =IF(L55="","",L55/2.31) ->  | O55: psi
E56: Static pressure on switch = | G56: =IF(G53="","",(G52-G53)/2.31) ->  | H56: psi | J56: Add high pressure switch setting: | N56: =IF(L54="","",L41) ->  | O56: psi
J57: Total pressure at lowest trough: | N57: =IF(L54="","",N55+N56) ->  | O57: psi

Sheet Public Water Connection
B1: Virginia Livestock Watering Systems - Public Water Connection Worksheet (revised 01/2022)
B4: 1) Assistance Information | G4: Project Notes:
B5: Customer:
B6: County:
B7: Date:
B8: Assisted By:
B10: 2) Water Budget
B11: a) Total Daily Water Demand | G11: b) Daily Peak Water Demand
B12: Type of livestock: | G12: Number of times herd drinks/day | K12: events
B13: Number of Animals: | G13: Time desired to water herd: | K13: minutes/event
B14: Water demand/animal/day: | F14: gpd | G14: Average peak demand: | J14: =IF(J13="","",E15/J12/J13) ->  | K14: gpm
B15: Total Daily Demand: | E15: =IF(E14="","",E13*E14) ->  | F15: gpd | G15: Alternate peak demand: | K15: gpm | BD15: 1 | BE15: 2 | BF15: 3 | BG15: 4 | BH15: 5 | BI15: 6
B16: See Design Note for watering recommendations for various types of livestock. | G16: See Design Note for considerations for estimating peak demand. | BA16: Choices for Nominal Diameter | BF16: Actual average inner dia.
AS17: Choices for Design Peak Flow | AW17: Choices for Pipe Material | AZ17: Hazen-Williams | BE17: PE | BF17: PVC | BG17: PE-SDR 9 | BH17: Copper | BI17: Steel
AR18: 1 | AZ18: C Value | BC18: Pipe dia. (in.)
B19: 3) Design Parameters | AR19: 2 | AS19: Avg. Peak Demand | AW19: 1 | BB19: 1
B20: a) Trough Information | G20: b) Pipe Information | L20: c) Vertical Lift | AR20: 3 | AS20: Alternate Peak Demand | AW20: 2 | AX20: Plastic: PE SIDR-PR | AZ20: 150 | BB20: 2 | BC20: 1" | BE20: 1.049 | BF20: 1.029 | BG20: 0.863 | BH20: 1.025 | BI20: 1.049
B21: Trough type(s): | G21: Pipe material: | L21: Elevation of highest point in system: | P21: feet | AR21: 4 | AS21: Source Flow Rate | AW21: 3 | AX21: Plastic: SCH 40 PVC | AZ21: 150 | BB21: 3 | BC21: 1 1/4" | BE21: 1.38 | BF21: 1.36 | BG21: 1.054 | BH21: 1.265 | BI21: 1.38
B22: Design flow rate: | E22: =CHOOSE(AR23,"",J14,J15,O12) ->  | F22: gpm | G22: Plastic pipe nominal diameter: | L22: Elevation of public water connection: | P22: feet | AW22: 4 | AX22: Plastic: PE SDR 9 | AZ22: 150 | BB22: 4 | BC22: 1 1/2" | BE22: 1.61 | BF22: 1.59 | BG22: 1.245 | BH22: 1.505 | BI22: 1.61
B23: Select flow rate to troughs as guided by Step 2 and Design Note. Typical design flow rates are: 8 gpm for frost-free troughs; 5 gpm for storage troughs. | G23: Plastic pipe actual diameter: | J23: =IF(BB25=1,"",INDEX(BD19:BI23,BB25,AW25)) ->  | K23: in. | AR23: 1 | AS23: = choice | AW23: 5 | AX23: Copper | AZ23: 130 | BB23: 5 | BC23: 2" | BE23: 2.067 | BF23: 2.047 | BG23: 1.629 | BH23: 1.985 | BI23: 2.067
G24: Pipe cross-sectional area: | J24: =IF(BB25=1,"",(J23/2)^2*PI()/144) ->  | K24: sq. ft. | L24: Elevation difference: | O24: =IF(O21="","",O21-O22) ->  | P24: feet | AW24: 6 | AX24: Steel | AZ24: 80
G25: Friction loss/100 ft | J25: =IF(OR(BB25= 1,E22=""),"",1043.8*POWER(E22/AZ25,1.85)/POWER(J23,4.87)) ->  | K25: ft./100 ft. | N25: OR | O25: =IF(O24="","",O24/2.31) ->  | P25: psi | AW25: 1 | AX25: = choice | AZ25: =CHOOSE(AW25,"",150,150,150,130,80) ->  | BB25: 1 | BC25: = choice
B26: Maximum float valve pressure: | F26: psi | G26: Velocity check (<5 fps): | J26: =IF(BB25=1,"",IF(E22="","",E22*0.002228/J24)) ->  | K26: fps
B27: Typical values range from 75-140 psi. Check manufacturer's recommendations. | G27: If velocity is greater than 5 fps, consider a larger diameter pipe. | AX27: C values from EFH-3, Fig 3-14 except
AX28: for copper. Copper value from MWPS-1, 1987, p. 801.17.
G29: Pipe length to farthest watering point: | K29: feet
B30: Minimum float valve pressure: | F30: psi | G30: Add 10% for slope and fittings: | J30: =IF(J29="","",J29*1.1) ->  | K30: feet
B31: Varies depending on type of float. Use manufacturer's recommended minimum. Typical value is 10 psi. | G31: Total friction loss: | J31: =IF(J29="","",J25*J30/100) ->  | K31: ft. OR
G32: Total friction loss: | J32: =IF(J31="","",J31/2.31) ->  | K32: psi If friction loss is greater than 10 psi, consider using a larger diameter pipe.
G34: Pipe pressure rating: | K34: psi
G35: 72% of rating (See VA CPS 516): | J35: =IF(J34="","",0.72*J34) ->  | K35: psi Compare with result in Step 5.
B38: 4) Pressure Requirements | I38: 5) Static Pressure Checks
B39: Summary of energy requirements for the watering system: | I39: Check static pressure at lowest trough:
C40: Elevation head: | E40: =IF(O25="","",O25) ->  | F40: psi | I40: Elevation of public water connection: | L40: =IF(O22="","",O22) ->  | M40: feet
C41: Friction loss: | E41: =IF(J31="","",J31/2.31) ->  | F41: psi | I41: Elevation of lowest trough: | M41: feet
C42: Minimum float valve pressure: | E42: =IF(E30="","",E30) ->  | F42: psi | K42: Difference: | L42: =IF(L40="","",L40-L41) ->  | M42: feet OR | N42: =IF(L42="","",L42/2.31) ->  | O42: psi
K43: Add pressure at meter: | N43: =IF(E46="","",E46) ->  | O43: psi
C44: TOTAL REQUIREMENTS: | E44: =IF(E40="","",SUM(E40:E42)) ->  | F44: psi | K44: Total pressure at lowest trough: | N44: =IF(N42="","",N42+N43) ->  | O44: psi
N45: Orange cell: pressure exceeds max float valve pressure; red cell: pipe pressure limit exceeded. Check troughs at higher elevations if pressure is excessive at lowest trough.
C46: Pressure at water meter: | F46: psi
C47: Available pressure is: | E47: =IF(E44="","",IF(E46>E44,"Adequate","Inadequate")) -> 

Sheet Gravity System
A1: Virginia Livestock Watering Systems - Pressure-Energy/Gravity Flow Worksheet (revised 01/2022)
B4: 1) Assistance Information | G4: Project Notes: | H4: Seek advice from Area Engineer before using this tab.
B5: Customer:
B6: County:
B7: Date:
B8: Assisted By:
B10: 2) Water Budget
B11: a) Total Daily Water Demand | G11: b) Daily Peak Water Demand | L11: c) Evaluate Source
B12: Type of livestock: | G12: No. of times herd drinks/day: | J12: events | L12: Source flow rate: | O12: gpm
B13: Number of Animals: | G13: Time desired to water herd: | J13: minutes/event | L13: Source daily yield: | N13: =IF(N12="","",N12*60*24) ->  | O13: gpd
B14: Water demand/animal/day: | F14: gpd | G14: Average peak demand: | I14: =IF(I13="","",E15/I12/I13) ->  | J14: gpm | L14: If source flow rate is close to or less than Peak Demand, consider storage alternatives.
B15: Total Daily Demand: | E15: =IF(E14="","",E13*E14) ->  | F15: gpd | G15: Alternate peak demand: | J15: gpm | BD15: 1 | BE15: 2 | BF15: 3 | BG15: 4 | BH15: 5 | BI15: 6 | BL15: Kp Values: See EFH-3, p. 3-21.
B16: See Design Note for watering recommendations for various types of livestock. | G16: See Design Note for considerations for estimating peak demand. | L16: If source daily yield is less than Total Daily Demand, consider an alternate or supplemental water source. | BA16: Choices for Nominal Diameter | BF16: Actual average inner dia.
AS17: Choices for Design Peak Flow | AW17: Choices for Pipe Material | AZ17: Hazen-Williams | BE17: PE | BF17: PVC | BG17: PE-SDR 9 | BH17: Copper | BI17: Steel | BK17: PE | BL17: PVC | BM17: PE-SDR 9 | BN17: Copper | BO17: Steel
AR18: 1 | AZ18: C Value | BC18: Pipe dia. (in.) | BK18: n=0.012 | BL18: n=0.011 | BM18: n=0.012 | BN18: n=0.011 | BO18: n=0.012
B19: 3) Design Parameters | G19: See Design Note or EFH Ch. 12 for guidance on pipe size selection. | N19: Pumping rate should not exceed source rate. | AM19: Trough Types | AR19: 2 | AS19: Avg. Peak Demand | AW19: 1 | BB19: 1
B20: a) Trough Information | G20: b) Pipe Information | L20: d) If Pumping to a Reservoir: | AR20: 3 | AS20: Alternate Peak Demand | AW20: 2 | AX20: Plastic: PE SIDR-PR | AZ20: 150 | BB20: 2 | BC20: 1" | BE20: 1.049 | BF20: 1.029 | BG20: 0.863 | BH20: 1.025 | BI20: 1.049 | BK20: =5087*(0.012)^2/(BE20^(4/3)) -> 0.6872639736 | BL20: =5087*(0.011)^2/(BF20^(4/3)) -> 0.5925067126 | BM20: =5087*(0.012)^2/(BG20^(4/3)) -> 0.8915447948 | BN20: =5087*(0.011)^2/(BH20^(4/3)) -> 0.5955916778 | BO20: =5087*(0.012)^2/(BI20^(4/3)) -> 0.6872639736
B21: Trough type(s): | G21: Pipe material: | L21: Desired pumping rate to reservoir: | P21: gpm | AM21: T1: Freeze-Proof | AN21: 1 | AR21: 4 | AS21: Source Flow Rate | AW21: 3 | AX21: Plastic: SCH 40 PVC | AZ21: 150 | BB21: 3 | BC21: 1 1/4" | BE21: 1.38 | BF21: 1.36 | BG21: 1.054 | BH21: 1.265 | BI21: 1.38 | BK21: =5087*(0.012)^2/(BE21^(4/3)) -> 0.4767808254 | BL21: =5087*(0.011)^2/(BF21^(4/3)) -> 0.408502981 | BM21: =5087*(0.012)^2/(BG21^(4/3)) -> 0.6829203935 | BN21: =5087*(0.011)^2/(BH21^(4/3)) -> 0.4499107884 | BO21: =5087*(0.012)^2/(BI21^(4/3)) -> 0.4767808254
B22: Design flow rate: | E22: =CHOOSE(AR23,"",I14,I15,N12) ->  | F22: gpm | G22: Pipe nominal diameter: | L22: Pumping duration required to meet daily demand: | O22: =IF(O21="","",E15/O21) ->  | P22: min/day | AM22: T1: Storage | AW22: 4 | AX22: Plastic: PE SDR 9 | AZ22: 150 | BB22: 4 | BC22: 1 1/2" | BE22: 1.61 | BF22: 1.59 | BG22: 1.245 | BH22: 1.505 | BI22: 1.61 | BK22: 0.3882007723 | BL22: 0.3316787201 | BM22: 0.5469300193 | BN22: 0.3568878597 | BO22: 0.3882007723
B23: Select flow rate to troughs as guided by Step 2 and Design Note. Typical design flow rates are: 8 gpm for frost-free troughs; 5 gpm for storage troughs. | G23: Pipe avg. inner diameter: | J23: =IF(BB25=1,"",INDEX(BD19:BI23,BB25,AW25)) ->  | K23: in. | L23: Ground elevation of water source: | P23: ft. | AR23: 1 | AS23: = choice | AW23: 5 | AX23: Copper | AZ23: 130 | BB23: 5 | BC23: 2" | BE23: 2.067 | BF23: 2.047 | BG23: 1.629 | BH23: 1.985 | BI23: 2.067 | BK23: 0.2782084143 | BL23: 0.2368226943 | BM23: 0.3821754486 | BN23: 0.2467363257 | BO23: 0.2782084143
G24: Pipe cross-sectional area: | J24: =IF(BB25=1,"",(J23/2)^2*PI()/144) ->  | K24: sq. ft. | L24: Elevation head: | O24: =IF(O23="","",J35-O23) ->  | P24: ft. | AN24: 1 | AW24: 6 | AX24: Steel | AZ24: 80
G25: Kp (head loss coefficient): | J25: =IF(J23="","",INDEX(BJ19:BO23,BB25,AW25)) ->  | L25: Static pressure in pipe (check against max. allowed): | O25: =IF(O23="", "", (J33-O23)/2.31) ->  | P25: psi | AM25: T2: Freeze-Proof | AW25: 1 | AX25: = choice | AZ25: =CHOOSE(AW25,"",150,150,150,130,80) ->  | BB25: 1 | BC25: = choice
B26: Maximum float valve pressure, if applicable: | F26: psi | G26: Velocity check (<5 fps): | J26: =IF(BB25=1,"",IF(E22="","",E22*0.002228/J24)) ->  | K26: fps | L26: Dynamic Head Calculations: | AM26: T2: Storage
B27: Typical values range from 75-140 psi. Check manufacturer's recommendations. | G27: If velocity is greater than 5 fps, consider a larger diameter pipe. Note: For flows greater than design flow, velocities will be greater. | M27: Pipe length to reservoir: | P27: ft | BK27: Q = A * SQRT(2*32.2*h / (Kp*L) ) * 7.5 * 60 * efficiency (gpm)
M28: Add 10% for slope, fittings: | O28: =IF(O27="","",ROUND(O27*1.1,0)) ->  | P28: ft | AN28: 1 | AX28: C values from EFH-3, Fig 3-14 except | BK28: Kp values computed based on EFH Chapter 3, eq. 3-9.
G29: Pipe pressure rating: | K29: psi | M29: Friction loss/100': | O29: =IF(O27="","",1043.8*POWER(O21/AZ25,1.85)/POWER(J23,4.87)) ->  | P29: ft/100 ft | AM29: T3: Freeze-Proof | AX29: for copper. Copper value from MWPS-1, 1987, p. 801.17.
B30: Minimum float valve pressure, if applicable: | F30: psi | G30: 72% of rating (See VA CPS 516): | J30: =IF(J29="","",0.72*J29) ->  | K30: psi | M30: Total friction loss: | O30: =IF(O27="","",O28/100*O29) ->  | P30: ft | AM30: T3: Storage | BK30: Manning's n values for plastic pipe from EFH-3, Fig. 3-13.
B31: Varies depending on type of float. Use manufacturer's recommended minimum. Typical value is 10 psi. | L31: Note: If total friction loss exceeds 23.1 ft (10 psi), consider choosing a larger pipe diameter.
G32: c) Gravity System Parameters | AN32: 1
G33: Reservoir gnd elev or spring box outlet elev: | K33: ft | L33: Dynamic Head added to pump by pressure component of system: | N33: Friction + elev. head: | O33: =IF(O27="","",O30+O24) ->  | P33: ft. | AM33: T4: Freeze-Proof
G34: Reservoir depth below ground (typically 6'): | K34: ft | O34: OR | AM34: T4: Storage
G35: Reservoir bottom (elev for computing head): | J35: =IF(J33="","",J33-J34) ->  | K35: ft | O35: =IF(O27="","",O33/2.31) ->  | P35: psi
B37: 4) Flow and Static Pressure Checks | AN37: 1
B38: TROUGH ELEVATIONS: | F38: CALCULATIONS FOR FLOAT-VALVE SYSTEMS: | K38: CALCULATIONS FOR CASCADING SYSTEMS: Consult Area Engineer! | AM38: T5: Freeze-Proof
B39: Enter trough elevations from survey data. For cascade-type systems, enter trough elevations in order from highest to lowest. | F39: Troughs are tee-ed off from the main line, with flow to each trough controlled by a float valve. Pipe length is measured from the reservoir or spring box. | K39: Troughs are connected in series by way of their overflow pipes. Pipe length for Trough 1 is measured from the spring box. Subsequent lengths are measured from the previous trough. | AM39: T5: Storage
B41: Trough ID and Type | C41: Trough Ground Elev. (ft) | D41: Estimated Water Surface Elev. (ft) | F41: Pipe Length from Reservoir or Spring Box to Trough (ft) | G41: Head from Reservoir or Spring Box (ft) | H41: Maximum Flow Rate (gpm) | I41: Static Pressure (psi) | K41: Sub-System | L41: Pipe Length from Trough above (ft) | M41: Head from Upper Trough (ft) | N41: Max. Flow Rate (gpm) | O41: Air lock can be a problem in spring-fed systems due to dissolved oxygen. Use a minimum diameter of 1-1/2" for pipe grades bewteen 0.5-1.0%. Use a minimum pipe diameter of 2" for pipe grades less than 0.5%. See EFH Ch. 12. | AN41: 1
B42: T1 | D42: =IF(C42="","",C42+2) ->  | G42: =IF(F42="","",$J$35-D42) ->  | H42: =IF(F42="","",IF($BB$25=1,"",$J$24*360*SQRT(64.4*G42/$J$25/F42))) ->  | I42: =IF(F42="","",($J$33-C42)/2.31) ->  | K42: Spring box - T1 | M42: =IF(L42="","",$J$35-D42) ->  | N42: =IF(L42="","",$J$24*450*SQRT(64.4*M42/$J$25/L42)) ->  | AM42: T6: Freeze-Proof
B43: T2 | D43: =IF(C43="","",C43+2) ->  | H43: =IF(F43="","",IF($BB$25=1,"",$J$24*360*SQRT(64.4*G43/$J$25/F43))) ->  | K43: T1-T2 | M43: =IF(L43="","",D42-D43) ->  | N43: =IF(L43="","",$J$24*450*SQRT(64.4*M43/$J$25/L43)) ->  | AM43: T6: Storage
B44: T3 | K44: T2-T3
B45: T4 | K45: T3-T4 | AN45: 1
B46: T5 | K46: T4-T5 | AM46: T7: Freeze-Proof
B47: T6 | K47: T5-T6 | AM47: T7: Storage
B48: T7 | K48: T6-T7
B49: T8 | K49: T7-T8 | AN49: 1
B50: T9 | K50: T8-T9 | AM50: T8: Freeze-Proof
B51: T10 | K51: T9-T10 | AM51: T8: Storage
B52: Trough water surface elevation is assumed to be 2 ft above ground elevation. | F52: Flow calculations assume a float valve efficiency of 80%. For flows less than the design rate (yellow cells), consider modifying the system or using storage troughs (such as HETT or concrete). If static pressures exceed the recommended maximum for the float valve (orange cell), consider using a pressure reducer, adjusting the orifice, or relocating the trough. If static pressures are less than the recommended minimum (red cells), consider moving the trough to a lower elevation. Cells are coded orange for static pressures exceeding maximum recommended pipe pressures. | K52: For flow rates less than the design rate (yellow cells), consider modifying the system or using larger volume troughs. If trough in-flow rate exceeds trough outflow rate (red cells), a flow restrictor, larger pipe diameter, or change in trough location may be necessary. This may not be an issue if source flow rate is always less than the maximum flow possible.
AN53: 1
AM54: T9: Freeze-Proof
AM55: T9: Storage
AN57: 1
AM58: T10:Freeze-Proof
AM59: T10: Storage

Sheet January 2022 Update Notes
A1: Changes made to September 2010 Version
A5: 1) Added PE SDR 9 plastic pipe (ASTM D-2737) as a choice to the list of pipe materials in Step 3b. Note that the inner diameter of this type of pipe is significantly smaller that other types of plastic pipe of the same nominal size.
A8: 2) Hazen-Williams C values adjusted according to EFH-3, Fig. 3-14:
A9: Plastic Pipe: increased from 140 to 150
A10: Steel: decreased from 100 to 80
A11: Copper: remained the same at 130. EFH-3 Fig. 3-14 does not list copper. Value of 130 obtained from Midwest Plan Service, Structures and Environment Handbook, Revised 1987, p. 801.17.
A14: 3) Manning's n values for plastic pipe changed from 0.009 to:
B15: PVC: | C15: 0.011
B16: PE: | C16: 0.012
B18: These values are from EFH-3, Fig. 3-13.
A21: 4) A note was added under 4b on the Pressure System tab regarding VFD systems.
